[Event "Late-Titled-Tuesday-Blitz-July-09-2024"]
[Site "Chess.com"]
[Date "2024.07.09"]
[Round "7"]
[White "bubeliang"]
[Black "ManMish2"]
[Result "0-1"]
[WhiteElo "2788"]
[BlackElo "2614"]
[TimeControl "180+1"]
[EndTime "15:18:14 PDT"]
[Termination "ManMish2 won on time"]

1. e4 {[%clk 0:02:56.5]} 1... e5 {[%clk 0:02:58.9]} 2. Nf3 {[%clk 0:02:54.4]}
2... Nc6 {[%clk 0:02:58]} 3. Nc3 {[%clk 0:02:54]} 3... Nf6 {[%clk 0:02:57.6]} 4.
Bb5 {[%clk 0:02:53.5]} 4... Nd4 {[%clk 0:02:57.2]} 5. Bc4 {[%clk 0:02:53.4]}
5... Bc5 {[%clk 0:02:51.9]} 6. O-O {[%clk 0:02:49.6]} 6... d6 {[%clk 0:02:48.6]}
7. d3 {[%clk 0:02:48.4]} 7... a6 {[%clk 0:02:45.7]} 8. Nxd4 {[%clk 0:02:46.3]}
8... Bxd4 {[%clk 0:02:44.9]} 9. Ne2 {[%clk 0:02:45.7]} 9... Ba7 {[%clk
0:02:43.8]} 10. Be3 {[%clk 0:02:43.7]} 10... Bxe3 {[%clk 0:02:35.2]} 11. fxe3
{[%clk 0:02:44.6]} 11... Be6 {[%clk 0:02:33.3]} 12. Bb3 {[%clk 0:02:43]} 12...
Qd7 {[%clk 0:02:28.6]} 13. Bxe6 {[%clk 0:02:33.5]} 13... fxe6 {[%clk 0:02:07.1]}
14. Qd2 {[%clk 0:02:29.5]} 14... O-O-O {[%clk 0:01:57.3]} 15. a4 {[%clk
0:02:26.9]} 15... d5 {[%clk 0:01:55.4]} 16. exd5 {[%clk 0:02:26.7]} 16... exd5
{[%clk 0:01:54.4]} 17. b4 {[%clk 0:02:24.8]} 17... b6 {[%clk 0:01:38.1]} 18. a5
{[%clk 0:02:21]} 18... b5 {[%clk 0:01:37.9]} 19. Nc1 {[%clk 0:02:19.5]} 19... d4
{[%clk 0:01:27.4]} 20. Nb3 {[%clk 0:02:16.8]} 20... Qd6 {[%clk 0:01:17.8]} 21.
Nc5 {[%clk 0:02:08.6]} 21... Ng4 {[%clk 0:01:09.5]} 22. e4 {[%clk 0:01:58.8]}
22... Ne3 {[%clk 0:01:03.9]} 23. Rf7 {[%clk 0:01:51.6]} 23... Rhf8 {[%clk
0:00:46.2]} 24. Qf2 {[%clk 0:01:38.6]} 24... Rxf7 {[%clk 0:00:33.2]} 25. Qxf7
{[%clk 0:01:39.2]} 25... Rf8 {[%clk 0:00:32.6]} 26. Qxg7 {[%clk 0:01:38.3]}
26... Qf6 {[%clk 0:00:13.5]} 27. Qxf6 {[%clk 0:01:27.3]} 27... Rxf6 {[%clk
0:00:14.4]} 28. Rc1 {[%clk 0:01:27.7]} 28... h5 {[%clk 0:00:13.3]} 29. h3 {[%clk
0:01:26.2]} 29... h4 {[%clk 0:00:12.9]} 30. c3 {[%clk 0:01:02.3]} 30... dxc3
{[%clk 0:00:12.6]} 31. Rxc3 {[%clk 0:01:03.2]} 31... Kd8 {[%clk 0:00:07.1]} 32.
d4 {[%clk 0:01:00.3]} 32... exd4 {[%clk 0:00:07]} 33. Rd3 {[%clk 0:01:00.9]}
33... Rf1+ {[%clk 0:00:07.2]} 34. Kh2 {[%clk 0:00:59.8]} 34... Re1 {[%clk
0:00:07.2]} 35. Rxd4+ {[%clk 0:00:58.9]} 35... Ke7 {[%clk 0:00:07.3]} 36. Nd3
{[%clk 0:00:45.6]} 36... Rd1 {[%clk 0:00:06.2]} 37. g4 {[%clk 0:00:34.5]} 37...
Rd2+ {[%clk 0:00:04.2]} 38. Kg1 {[%clk 0:00:19.7]} 38... Nc4 {[%clk 0:00:04.7]}
39. g5 {[%clk 0:00:16]} 39... Nb2 {[%clk 0:00:02.6]} 40. e5 {[%clk 0:00:10.1]}
40... Rxd3 {[%clk 0:00:02.4]} 41. Rxh4 {[%clk 0:00:11]} 41... Re3 {[%clk
0:00:02.5]} 42. Rh7+ {[%clk 0:00:11]} 42... Ke6 {[%clk 0:00:03.1]} 43. h4 {[%clk
0:00:11.5]} 43... Rxe5 {[%clk 0:00:02.8]} 44. g6 {[%clk 0:00:12]} 44... Re4
{[%clk 0:00:02.6]} 45. h5 {[%clk 0:00:12.2]} 45... Rg4+ {[%clk 0:00:03.2]} 46.
Kf2 {[%clk 0:00:11.1]} 46... Kf6 {[%clk 0:00:04.1]} 47. Rf7+ {[%clk 0:00:10.7]}
47... Kg5 {[%clk 0:00:03.9]} 48. Rh7 {[%clk 0:00:09.5]} 48... Nd3+ {[%clk
0:00:03.9]} 49. Ke3 {[%clk 0:00:09.3]} 49... Ne5 {[%clk 0:00:04.3]} 50. g7
{[%clk 0:00:09.4]} 50... Kf6 {[%clk 0:00:04.8]} 51. h6 {[%clk 0:00:09.8]} 51...
Nf7 {[%clk 0:00:05.3]} 52. Rh8 {[%clk 0:00:08.6]} 52... Nxh6 {[%clk 0:00:04.6]}
53. Rxh6+ {[%clk 0:00:09.2]} 53... Kxg7 {[%clk 0:00:05]} 54. Rxa6 {[%clk
0:00:10.1]} 54... Rxb4 {[%clk 0:00:05]} 55. Ra7 {[%clk 0:00:10]} 55... Rc4
{[%clk 0:00:03.7]} 56. a6 {[%clk 0:00:09.7]} 56... Kf6 {[%clk 0:00:03.7]} 57.
Rb7 {[%clk 0:00:10]} 57... c6 {[%clk 0:00:02.2]} 58. a7 {[%clk 0:00:06.9]} 58...
Ra4 {[%clk 0:00:02.4]} 59. Rb6 {[%clk 0:00:07.4]} 59... Ke5 {[%clk 0:00:02]} 60.
Rxc6 {[%clk 0:00:06.1]} 60... Ra3+ {[%clk 0:00:02.3]} 61. Kd2 {[%clk 0:00:06.2]}
61... Kd4 {[%clk 0:00:02.4]} 62. Rc7 {[%clk 0:00:05.7]} 62... Ra2+ {[%clk
0:00:02.7]} 63. Kc1 {[%clk 0:00:06.2]} 63... b4 {[%clk 0:00:02.7]} 64. Kb1
{[%clk 0:00:06.5]} 64... b3 {[%clk 0:00:03]} 65. Kc1 {[%clk 0:00:05.1]} 65...
Kd3 {[%clk 0:00:01.6]} 66. Kb1 {[%clk 0:00:04.1]} 66... Kd4 {[%clk 0:00:01.9]}
67. Rh7 {[%clk 0:00:04.4]} 67... Kc3 {[%clk 0:00:02]} 68. Rb7 {[%clk 0:00:02.9]}
68... Kc4 {[%clk 0:00:01.6]} 69. Rc7+ {[%clk 0:00:03.2]} 69... Kb4 {[%clk
0:00:01.9]} 0-1

[Event "Late-Titled-Tuesday-Blitz-July-09-2024"]
[Site "Chess.com"]
[Date "2024.07.09"]
[Round "7"]
[White "KevinGeorgeMicheal"]
[Black "Individoom"]
[Result "0-1"]
[WhiteElo "2554"]
[BlackElo "2760"]
[TimeControl "180+1"]
[EndTime "15:18:18 PDT"]
[Termination "Individoom won by resignation"]

1. e4 {[%clk 0:03:00.9]} 1... g6 {[%clk 0:02:58.3]} 2. g3 {[%clk 0:02:58.3]}
2... Bg7 {[%clk 0:02:58.1]} 3. Bg2 {[%clk 0:02:58.9]} 3... d6 {[%clk 0:02:55.5]}
4. Ne2 {[%clk 0:02:58.4]} 4... Nf6 {[%clk 0:02:55]} 5. O-O {[%clk 0:02:58.6]}
5... O-O {[%clk 0:02:54.8]} 6. d4 {[%clk 0:02:59.3]} 6... c5 {[%clk 0:02:54.1]}
7. Nbc3 {[%clk 0:02:58.3]} 7... Nc6 {[%clk 0:02:45.7]} 8. h3 {[%clk 0:02:56.2]}
8... cxd4 {[%clk 0:02:36.1]} 9. Nxd4 {[%clk 0:02:56]} 9... Bd7 {[%clk
0:02:36.1]} 10. Nxc6 {[%clk 0:02:52.4]} 10... Bxc6 {[%clk 0:02:36]} 11. Be3
{[%clk 0:02:53.1]} 11... a5 {[%clk 0:02:30.3]} 12. a4 {[%clk 0:02:50.9]} 12...
Nd7 {[%clk 0:02:23.1]} 13. Bd4 {[%clk 0:02:49.4]} 13... Bxd4 {[%clk 0:02:22.5]}
14. Qxd4 {[%clk 0:02:50]} 14... Qb6 {[%clk 0:02:23.1]} 15. Qxb6 {[%clk 0:02:49]}
15... Nxb6 {[%clk 0:02:23.1]} 16. b3 {[%clk 0:02:32.4]} 16... Rfc8 {[%clk
0:02:18.2]} 17. Ne2 {[%clk 0:02:31]} 17... Nd7 {[%clk 0:02:11.2]} 18. Nd4 {[%clk
0:02:28.9]} 18... Nc5 {[%clk 0:02:11]} 19. Rfe1 {[%clk 0:02:19.2]} 19... e5
{[%clk 0:01:57]} 20. Nxc6 {[%clk 0:01:50.9]} 20... bxc6 {[%clk 0:01:57.9]} 21.
Rad1 {[%clk 0:01:48.2]} 21... Rd8 {[%clk 0:01:57.8]} 22. Kf1 {[%clk 0:01:45.8]}
22... Kf8 {[%clk 0:01:57.5]} 23. Ke2 {[%clk 0:01:45.9]} 23... Ke7 {[%clk
0:01:57.4]} 24. Ke3 {[%clk 0:01:46.5]} 24... Rab8 {[%clk 0:01:57]} 25. f4 {[%clk
0:01:44.6]} 25... f6 {[%clk 0:01:56.3]} 26. Bf1 {[%clk 0:01:39.1]} 26... Ne6
{[%clk 0:01:53.2]} 27. fxe5 {[%clk 0:01:32.9]} 27... fxe5 {[%clk 0:01:48.2]} 28.
Bd3 {[%clk 0:01:27.5]} 28... Nd4 {[%clk 0:01:44.9]} 29. Rf1 {[%clk 0:01:20.9]}
29... Rf8 {[%clk 0:01:44]} 30. Kd2 {[%clk 0:01:13.5]} 30... Ke6 {[%clk 0:01:33]}
31. Rxf8 {[%clk 0:01:01.9]} 31... Rxf8 {[%clk 0:01:31.8]} 32. Rf1 {[%clk
0:01:02.6]} 32... Rb8 {[%clk 0:01:19.6]} 33. Rb1 {[%clk 0:00:53]} 33... d5
{[%clk 0:01:18.3]} 34. h4 {[%clk 0:00:43.6]} 34... Rf8 {[%clk 0:01:13.2]} 35.
exd5+ {[%clk 0:00:34.5]} 35... cxd5 {[%clk 0:01:12.2]} 36. Rf1 {[%clk 0:00:35]}
36... Rb8 {[%clk 0:01:08.4]} 37. h5 {[%clk 0:00:23.5]} 37... e4 {[%clk 0:01:08]}
38. Be2 {[%clk 0:00:23.3]} 38... Nf5 {[%clk 0:00:32.6]} 39. Bg4 {[%clk
0:00:21.3]} 39... Ke5 {[%clk 0:00:32.5]} 40. hxg6 {[%clk 0:00:20.8]} 40... hxg6
{[%clk 0:00:32.5]} 41. Rg1 {[%clk 0:00:16.1]} 41... Rh8 {[%clk 0:00:31.9]} 42.
Rg2 {[%clk 0:00:14.5]} 42... Nd4 {[%clk 0:00:29.7]} 43. Bd1 {[%clk 0:00:12.9]}
43... Rh1 {[%clk 0:00:28.1]} 44. c3 {[%clk 0:00:12.4]} 44... e3+ {[%clk
0:00:24.4]} 45. Kxe3 {[%clk 0:00:10.8]} 45... Nf5+ {[%clk 0:00:19.3]} 46. Kd2
{[%clk 0:00:10.8]} 46... Rxd1+ {[%clk 0:00:18.9]} 47. Kxd1 {[%clk 0:00:06.4]}
47... Ne3+ {[%clk 0:00:19.4]} 48. Ke2 {[%clk 0:00:06.9]} 48... Nxg2 {[%clk
0:00:19.6]} 49. b4 {[%clk 0:00:07.5]} 49... axb4 {[%clk 0:00:09.3]} 50. a5
{[%clk 0:00:05]} 50... b3 {[%clk 0:00:05.7]} 51. Kd2 {[%clk 0:00:04.1]} 51...
Ne3 {[%clk 0:00:05.9]} 52. a6 {[%clk 0:00:03.6]} 52... b2 {[%clk 0:00:05.6]} 53.
a7 {[%clk 0:00:03.6]} 53... b1=Q {[%clk 0:00:05.1]} 54. a8=Q {[%clk 0:00:03.9]}
54... Nc4+ {[%clk 0:00:05.3]} 55. Ke2 {[%clk 0:00:03.8]} 55... Qc2+ {[%clk
0:00:05.1]} 56. Kf3 {[%clk 0:00:03]} 56... Qd3+ {[%clk 0:00:04.1]} 57. Kg2
{[%clk 0:00:01.8]} 57... Ne3+ {[%clk 0:00:03.8]} 58. Kf3 {[%clk 0:00:02.1]}
58... Nf5+ {[%clk 0:00:03.3]} 59. Kf2 {[%clk 0:00:01.2]} 59... Qe3+ {[%clk
0:00:03.6]} 60. Kf1 {[%clk 0:00:01.4]} 60... Qf3+ {[%clk 0:00:03.8]} 61. Ke1
{[%clk 0:00:01.9]} 61... Qe3+ {[%clk 0:00:03.2]} 62. Kd1 {[%clk 0:00:02.4]}
62... Qd3+ {[%clk 0:00:03.5]} 63. Ke1 {[%clk 0:00:03]} 63... Qxc3+ {[%clk
0:00:03.7]} 64. Ke2 {[%clk 0:00:03]} 64... Qe3+ {[%clk 0:00:02.9]} 65. Kd1
{[%clk 0:00:03.2]} 65... Qf3+ {[%clk 0:00:02.9]} 66. Kc1 {[%clk 0:00:03.6]}
66... Qxg3 {[%clk 0:00:03.3]} 67. Qb8+ {[%clk 0:00:03.6]} 67... Ke4 {[%clk
0:00:03.7]} 68. Qb4+ {[%clk 0:00:03.5]} 68... d4 {[%clk 0:00:03.6]} 69. Qb7+
{[%clk 0:00:03.8]} 69... Kf4 {[%clk 0:00:03.9]} 70. Qc7+ {[%clk 0:00:03.7]}
70... Kg4 {[%clk 0:00:04.2]} 71. Qc6 {[%clk 0:00:02.1]} 71... Qf4+ {[%clk
0:00:04.3]} 72. Kb1 {[%clk 0:00:02]} 72... Qf1+ {[%clk 0:00:04.4]} 73. Ka2
{[%clk 0:00:02.1]} 73... Qe2+ {[%clk 0:00:04.8]} 74. Kb3 {[%clk 0:00:02.3]}
74... Qf3+ {[%clk 0:00:05.1]} 75. Qxf3+ {[%clk 0:00:01.7]} 75... Kxf3 {[%clk
0:00:05.5]} 0-1

[Event "Late-Titled-Tuesday-Blitz-July-09-2024"]
[Site "Chess.com"]
[Date "2024.07.09"]
[Round "7"]
[White "alexrustemov"]
[Black "AmbartsumianTyhran2012"]
[Result "0-1"]
[WhiteElo "2868"]
[BlackElo "2621"]
[TimeControl "180+1"]
[EndTime "15:18:32 PDT"]
[Termination "AmbartsumianTyhran2012 won by checkmate"]

1. d4 {[%clk 0:02:56.5]} 1... d5 {[%clk 0:02:58.7]} 2. c4 {[%clk 0:02:56.2]}
2... e6 {[%clk 0:02:58.3]} 3. Nc3 {[%clk 0:02:56]} 3... Nf6 {[%clk 0:02:58.4]}
4. cxd5 {[%clk 0:02:55.6]} 4... exd5 {[%clk 0:02:59.3]} 5. Bg5 {[%clk
0:02:55.7]} 5... c6 {[%clk 0:02:58.5]} 6. e3 {[%clk 0:02:56]} 6... h6 {[%clk
0:02:57.1]} 7. Bh4 {[%clk 0:02:55.4]} 7... Bf5 {[%clk 0:02:57.3]} 8. Qf3 {[%clk
0:02:54.9]} 8... Qb6 {[%clk 0:02:56.8]} 9. Qe2 {[%clk 0:02:11.5]} 9... Nbd7
{[%clk 0:02:52.2]} 10. Qd2 {[%clk 0:02:01.9]} 10... Bb4 {[%clk 0:02:39.9]} 11.
f3 {[%clk 0:02:00.7]} 11... O-O {[%clk 0:02:38.9]} 12. Nge2 {[%clk 0:01:59.4]}
12... Rfe8 {[%clk 0:02:37.2]} 13. a3 {[%clk 0:01:58.3]} 13... Bd6 {[%clk
0:02:33.1]} 14. Bf2 {[%clk 0:01:54.4]} 14... c5 {[%clk 0:02:31.6]} 15. g4 {[%clk
0:01:48.6]} 15... Bg6 {[%clk 0:02:20.9]} 16. h4 {[%clk 0:01:47.7]} 16... cxd4
{[%clk 0:02:18.1]} 17. Nxd4 {[%clk 0:01:46.5]} 17... Ne5 {[%clk 0:02:16.9]} 18.
g5 {[%clk 0:01:44.9]} 18... Qxd4 {[%clk 0:02:08.5]} 19. Qxd4 {[%clk 0:01:25.6]}
19... Nxf3+ {[%clk 0:02:06.8]} 20. Kd1 {[%clk 0:01:24.9]} 20... Nxd4 {[%clk
0:02:07.5]} 21. exd4 {[%clk 0:01:21.4]} 21... Ng4 {[%clk 0:02:02.2]} 22. Bg1
{[%clk 0:01:16]} 22... hxg5 {[%clk 0:01:54.3]} 23. hxg5 {[%clk 0:01:15.4]} 23...
Bf4 {[%clk 0:01:52.5]} 24. Nxd5 {[%clk 0:01:14.6]} 24... Bxg5 {[%clk 0:01:38.9]}
25. Nc7 {[%clk 0:01:13.6]} 25... Rac8 {[%clk 0:01:34.4]} 26. Nxe8 {[%clk
0:01:13.3]} 26... Bc2+ {[%clk 0:01:34]} 27. Ke2 {[%clk 0:01:03.9]} 27... Be4
{[%clk 0:01:16.4]} 28. Nd6 {[%clk 0:00:50.7]} 28... Rc2+ {[%clk 0:01:14.3]} 29.
Kd1 {[%clk 0:00:51]} 29... Rd2+ {[%clk 0:01:13.8]} 30. Ke1 {[%clk 0:00:49.8]}
30... Bxh1 {[%clk 0:01:13.3]} 31. Be2 {[%clk 0:00:45.6]} 31... Nf6 {[%clk
0:01:08.3]} 32. Rd1 {[%clk 0:00:34.7]} 32... Rxb2 {[%clk 0:01:06.6]} 33. Bf2
{[%clk 0:00:26.1]} 33... Bd5 {[%clk 0:01:04.1]} 34. Bc4 {[%clk 0:00:25.1]} 34...
Bf4 {[%clk 0:00:52.1]} 35. Bxd5 {[%clk 0:00:22.5]} 35... Nxd5 {[%clk 0:00:53]}
36. Nc4 {[%clk 0:00:17.2]} 36... Rc2 {[%clk 0:00:52]} 37. Ne5 {[%clk 0:00:12]}
37... Nc3 {[%clk 0:00:49.6]} 38. Ra1 {[%clk 0:00:09.6]} 38... Bxe5 {[%clk
0:00:42.3]} 39. dxe5 {[%clk 0:00:09.6]} 39... Re2+ {[%clk 0:00:43.2]} 40. Kf1
{[%clk 0:00:10]} 40... Rxe5 {[%clk 0:00:44.1]} 41. Bxa7 {[%clk 0:00:09]} 41...
Rf5+ {[%clk 0:00:37.5]} 42. Ke1 {[%clk 0:00:08.2]} 42... b5 {[%clk 0:00:37.3]}
43. Kd2 {[%clk 0:00:07.9]} 43... Nd5 {[%clk 0:00:32.3]} 44. Kd3 {[%clk
0:00:07.8]} 44... Nf6 {[%clk 0:00:29.6]} 45. Kc3 {[%clk 0:00:06.6]} 45... Rf4
{[%clk 0:00:22.4]} 46. Rb1 {[%clk 0:00:03.2]} 46... Ra4 {[%clk 0:00:22.2]} 47.
Bb6 {[%clk 0:00:01.6]} 47... Nd5+ {[%clk 0:00:21.7]} 48. Kb3 {[%clk 0:00:01]}
48... Nxb6 {[%clk 0:00:21.5]} 49. Re1 {[%clk 0:00:01.2]} 49... Nc4 {[%clk
0:00:21.2]} 50. Re8+ {[%clk 0:00:01.1]} 50... Kh7 {[%clk 0:00:21.1]} 51. Rb8
{[%clk 0:00:02]} 51... Rxa3+ {[%clk 0:00:20.3]} 52. Kb4 {[%clk 0:00:02.6]} 52...
Ra2 {[%clk 0:00:15.9]} 53. Kc5 {[%clk 0:00:02.8]} 53... Ne5 {[%clk 0:00:16.1]}
54. Kd5 {[%clk 0:00:02.5]} 54... Ng6 {[%clk 0:00:16.6]} 55. Rxb5 {[%clk
0:00:02.1]} 55... Rf2 {[%clk 0:00:16.6]} 56. Ke4 {[%clk 0:00:02.3]} 56... Rf6
{[%clk 0:00:16.8]} 57. Rh5+ {[%clk 0:00:01.8]} 57... Kg8 {[%clk 0:00:16.7]} 58.
Ra5 {[%clk 0:00:02.7]} 58... Nf8 {[%clk 0:00:17]} 59. Ke3 {[%clk 0:00:02.8]}
59... g6 {[%clk 0:00:17.2]} 60. Ra7 {[%clk 0:00:02.9]} 60... Kg7 {[%clk
0:00:17.6]} 61. Ke4 {[%clk 0:00:03.5]} 61... Ne6 {[%clk 0:00:17.5]} 62. Ke3
{[%clk 0:00:03.8]} 62... g5 {[%clk 0:00:17.9]} 63. Ke2 {[%clk 0:00:04.1]} 63...
Rf4 {[%clk 0:00:17.8]} 64. Ra5 {[%clk 0:00:04.1]} 64... Kg6 {[%clk 0:00:18.2]}
65. Ke3 {[%clk 0:00:04.7]} 65... g4 {[%clk 0:00:18.1]} 66. Ra8 {[%clk
0:00:05.3]} 66... Rf3+ {[%clk 0:00:18.4]} 67. Ke4 {[%clk 0:00:05.3]} 67... Ng5+
{[%clk 0:00:18.3]} 68. Ke5 {[%clk 0:00:05.5]} 68... Rf5+ {[%clk 0:00:18.8]} 69.
Kd4 {[%clk 0:00:05.4]} 69... g3 {[%clk 0:00:19.2]} 70. Ra3 {[%clk 0:00:04.9]}
70... g2 {[%clk 0:00:19.5]} 71. Rg3 {[%clk 0:00:05]} 71... g1=Q+ {[%clk
0:00:17.5]} 72. Rxg1 {[%clk 0:00:04.1]} 72... Rf4+ {[%clk 0:00:15.9]} 73. Ke3
{[%clk 0:00:04.1]} 73... Re4+ {[%clk 0:00:14.5]} 74. Kf2 {[%clk 0:00:03.4]}
74... Kf5 {[%clk 0:00:13.8]} 75. Ra1 {[%clk 0:00:03.9]} 75... Kg4 {[%clk
0:00:13.9]} 76. Kg2 {[%clk 0:00:03.9]} 76... f5 {[%clk 0:00:14]} 77. Kh1 {[%clk
0:00:04.1]} 77... f4 {[%clk 0:00:14.1]} 78. Kg2 {[%clk 0:00:04.6]} 78... Re2+
{[%clk 0:00:13.7]} 79. Kh1 {[%clk 0:00:05]} 79... Nf3 {[%clk 0:00:11.4]} 80. Ra2
{[%clk 0:00:04.3]} 80... Nd2 {[%clk 0:00:08.2]} 81. Ra1 {[%clk 0:00:03.2]} 81...
f3 {[%clk 0:00:07.5]} 82. Rg1+ {[%clk 0:00:03.2]} 82... Kf4 {[%clk 0:00:07.3]}
83. Rg8 {[%clk 0:00:03.4]} 83... Ne4 {[%clk 0:00:06.4]} 84. Rf8+ {[%clk
0:00:03.6]} 84... Ke3 {[%clk 0:00:06.8]} 85. Kg1 {[%clk 0:00:03.6]} 85... Rg2+
{[%clk 0:00:06.5]} 86. Kh1 {[%clk 0:00:03]} 86... Ng3# {[%clk 0:00:06.6]} 0-1

[Event "Late-Titled-Tuesday-Blitz-July-09-2024"]
[Site "Chess.com"]
[Date "2024.07.09"]
[Round "7"]
[White "MatthewG-p4p"]
[Black "Keaton87"]
[Result "1-0"]
[WhiteElo "2920"]
[BlackElo "2650"]
[TimeControl "180+1"]
[EndTime "15:18:40 PDT"]
[Termination "MatthewG-p4p won on time"]

1. f4 {[%clk 0:03:00.9]} 1... Nf6 {[%clk 0:02:56.3]} 2. Nf3 {[%clk 0:03:00.8]}
2... g6 {[%clk 0:02:56.7]} 3. g3 {[%clk 0:03:01.7]} 3... Bg7 {[%clk 0:02:57.1]}
4. Bg2 {[%clk 0:03:02.6]} 4... O-O {[%clk 0:02:57.4]} 5. O-O {[%clk 0:03:03.5]}
5... d6 {[%clk 0:02:57.7]} 6. d3 {[%clk 0:03:04.4]} 6... Nbd7 {[%clk 0:02:57.2]}
7. Nc3 {[%clk 0:03:05.3]} 7... e5 {[%clk 0:02:57.5]} 8. e4 {[%clk 0:03:06.2]}
8... c6 {[%clk 0:02:43.9]} 9. f5 {[%clk 0:03:06.1]} 9... gxf5 {[%clk 0:02:35.6]}
10. Nh4 {[%clk 0:03:06.4]} 10... fxe4 {[%clk 0:02:29.1]} 11. dxe4 {[%clk
0:03:07.3]} 11... Nc5 {[%clk 0:02:23.1]} 12. Nf5 {[%clk 0:03:04.3]} 12... Bxf5
{[%clk 0:02:19.6]} 13. Rxf5 {[%clk 0:03:05.2]} 13... Ne6 {[%clk 0:02:05.9]} 14.
Be3 {[%clk 0:03:05.1]} 14... d5 {[%clk 0:02:03.8]} 15. exd5 {[%clk 0:03:06]}
15... Nxd5 {[%clk 0:02:00.7]} 16. Nxd5 {[%clk 0:03:06.9]} 16... cxd5 {[%clk
0:02:00.7]} 17. Bxd5 {[%clk 0:03:07.2]} 17... Nd4 {[%clk 0:01:53.6]} 18. Bxd4
{[%clk 0:03:05.9]} 18... exd4 {[%clk 0:01:53.6]} 19. Qf3 {[%clk 0:03:01.7]}
19... Qb6 {[%clk 0:01:45.9]} 20. Kh1 {[%clk 0:02:51.4]} 20... Qxb2 {[%clk
0:01:43]} 21. Rf1 {[%clk 0:02:49.3]} 21... d3 {[%clk 0:01:41.2]} 22. cxd3 {[%clk
0:02:46.6]} 22... Rad8 {[%clk 0:01:28.9]} 23. Be4 {[%clk 0:02:46.7]} 23... h6
{[%clk 0:01:22.2]} 24. Rh5 {[%clk 0:02:39.7]} 24... Rd6 {[%clk 0:01:16.7]} 25.
Rf5 {[%clk 0:02:33.7]} 25... Qxa2 {[%clk 0:01:11.4]} 26. Bd5 {[%clk 0:02:30.5]}
26... Rxd5 {[%clk 0:00:54.4]} 27. Rxd5 {[%clk 0:02:31.4]} 27... a5 {[%clk
0:00:50.8]} 28. Rd7 {[%clk 0:02:31.4]} 28... b5 {[%clk 0:00:48.9]} 29. d4 {[%clk
0:02:25.5]} 29... Qe6 {[%clk 0:00:48.8]} 30. Rd5 {[%clk 0:02:17.6]} 30... Rb8
{[%clk 0:00:43.7]} 31. Rf5 {[%clk 0:02:17.7]} 31... a4 {[%clk 0:00:29.2]} 32.
Rxf7 {[%clk 0:02:12.7]} 32... a3 {[%clk 0:00:29.2]} 33. d5 {[%clk 0:02:10.9]}
33... Qd6 {[%clk 0:00:20.6]} 34. Qf5 {[%clk 0:01:07.9]} 34... a2 {[%clk
0:00:15.1]} 35. Rd7 {[%clk 0:01:07.8]} 35... Rf8 {[%clk 0:00:07.1]} 36. Rxg7+
{[%clk 0:00:34.2]} 36... Kxg7 {[%clk 0:00:06.7]} 37. Qg4+ {[%clk 0:00:35]} 37...
Kh7 {[%clk 0:00:03.2]} 38. Qe4+ {[%clk 0:00:34.1]} 38... Kg7 {[%clk 0:00:03.6]}
39. Qd4+ {[%clk 0:00:32]} 39... Rf6 {[%clk 0:00:03.3]} 40. Qa7+ {[%clk
0:00:31.4]} 40... Kg6 {[%clk 0:00:02.6]} 41. Rd1 {[%clk 0:00:20.6]} 41... b4
{[%clk 0:00:02.4]} 42. Qxa2 {[%clk 0:00:20.3]} 42... Rf5 {[%clk 0:00:02.6]} 43.
Qc2 {[%clk 0:00:19.8]} 43... Kf6 {[%clk 0:00:02.6]} 44. Qb2+ {[%clk 0:00:20.1]}
44... Kg6 {[%clk 0:00:02.7]} 45. Qd4 {[%clk 0:00:20.7]} 45... Re5 {[%clk
0:00:02.6]} 46. Kg2 {[%clk 0:00:18.5]} 46... h5 {[%clk 0:00:03.2]} 47. h4 {[%clk
0:00:18.4]} 47... Rf5 {[%clk 0:00:03.5]} 48. Rd2 {[%clk 0:00:18.6]} 48... Re5
{[%clk 0:00:04]} 49. Qd3+ {[%clk 0:00:19]} 49... Rf5 {[%clk 0:00:04.5]} 50. Qe4
{[%clk 0:00:18.3]} 50... Kf6 {[%clk 0:00:04.5]} 51. Qd4+ {[%clk 0:00:16]} 51...
Kg6 {[%clk 0:00:04.8]} 52. Qc4 {[%clk 0:00:14.8]} 52... Re5 {[%clk 0:00:04.6]}
53. Qc2+ {[%clk 0:00:13.1]} 53... Kh6 {[%clk 0:00:03.8]} 54. Qb3 {[%clk
0:00:11.7]} 54... Kg6 {[%clk 0:00:03.7]} 55. Qd3+ {[%clk 0:00:12]} 55... Kf6
{[%clk 0:00:03.7]} 56. Rf2+ {[%clk 0:00:11.8]} 56... Kg7 {[%clk 0:00:03.8]} 57.
Rd2 {[%clk 0:00:10.5]} 57... Kf6 {[%clk 0:00:03.5]} 58. Qd4 {[%clk 0:00:11.2]}
58... Kg6 {[%clk 0:00:03.6]} 59. Qf4 {[%clk 0:00:09.3]} 59... b3 {[%clk
0:00:01.8]} 60. Qf3 {[%clk 0:00:04.6]} 60... Rf5 {[%clk 0:00:01.8]} 61. Qd3
{[%clk 0:00:04.6]} 61... Kf6 {[%clk 0:00:01.8]} 62. Qxb3 {[%clk 0:00:04.9]}
62... Re5 {[%clk 0:00:01.4]} 63. Qf3+ {[%clk 0:00:05]} 63... Rf5 {[%clk
0:00:01.8]} 64. Qc3+ {[%clk 0:00:05.5]} 64... Kg6 {[%clk 0:00:02]} 65. Qd3
{[%clk 0:00:06]} 65... Kf6 {[%clk 0:00:02.5]} 66. Qd4+ {[%clk 0:00:06.2]} 66...
Kg6 {[%clk 0:00:03.1]} 67. Kh2 {[%clk 0:00:07.1]} 67... Re5 {[%clk 0:00:02.6]}
68. Qd3+ {[%clk 0:00:07.6]} 68... Rf5 {[%clk 0:00:02.9]} 69. Rf2 {[%clk
0:00:07.8]} 69... Qxd5 {[%clk 0:00:03.4]} 70. Qe2 {[%clk 0:00:02.2]} 70... Qe5
{[%clk 0:00:03.6]} 71. Qc2 {[%clk 0:00:02.5]} 71... Qd5 {[%clk 0:00:03.3]} 72.
Rxf5 {[%clk 0:00:02.1]} 72... Qxf5 {[%clk 0:00:04.2]} 73. Qg2 {[%clk 0:00:02.6]}
73... Qg4 {[%clk 0:00:04.1]} 74. Qd2 {[%clk 0:00:02.9]} 74... Kf5 {[%clk
0:00:04.2]} 75. Qf2+ {[%clk 0:00:03.2]} 75... Ke5 {[%clk 0:00:04.1]} 76. Qe3+
{[%clk 0:00:03.3]} 76... Kf5 {[%clk 0:00:03.6]} 77. Qd2 {[%clk 0:00:03.7]} 77...
Qf3 {[%clk 0:00:03.1]} 78. Qg5+ {[%clk 0:00:03.2]} 78... Ke4 {[%clk 0:00:03.1]}
79. Qe7+ {[%clk 0:00:03.3]} 79... Kd3 {[%clk 0:00:03.4]} 80. Qd6+ {[%clk
0:00:03]} 80... Ke2 {[%clk 0:00:03.8]} 81. Qa6+ {[%clk 0:00:03.1]} 81... Kf2
{[%clk 0:00:03.7]} 82. Qa2+ {[%clk 0:00:03.6]} 82... Ke3 {[%clk 0:00:03.5]} 83.
Qa3+ {[%clk 0:00:03.6]} 83... Kf2 {[%clk 0:00:04]} 84. Qb2+ {[%clk 0:00:04]}
84... Ke3 {[%clk 0:00:04.4]} 85. Qc3+ {[%clk 0:00:04.5]} 85... Kf2 {[%clk
0:00:04.3]} 86. Qd2+ {[%clk 0:00:05]} 86... Kf1 {[%clk 0:00:04.2]} 87. Qf4
{[%clk 0:00:04.8]} 87... Ke2 {[%clk 0:00:03.9]} 88. Qxf3+ {[%clk 0:00:04.3]}
88... Kxf3 {[%clk 0:00:04.8]} 89. Kh3 {[%clk 0:00:05.2]} 89... Ke4 {[%clk
0:00:02.3]} 90. g4 {[%clk 0:00:06.1]} 90... Ke5 {[%clk 0:00:02.8]} 91. g5 {[%clk
0:00:06.2]} 91... Kf5 {[%clk 0:00:03.1]} 92. Kg3 {[%clk 0:00:07.1]} 92... Kg6
{[%clk 0:00:03.2]} 93. Kf4 {[%clk 0:00:08]} 1-0